Cogmind - Beta 14 @@@ ROGUE MODE // 2024.08.22 @ 17:46:13 Player: jimmyl Result: Destroyed by G-50 Soldier with Heavy Laser Performance ------------- Evolutions (4) 2000 Regions Visited (7) 1400 Robots Destroyed (79) 395 Value Destroyed (1929) 1929 Prototype IDs (15) 300 Alien Tech Used (0) 0 Bonus (-121) -121 TOTAL SCORE: 5903 Bonus ------- Registered with UFD 300 Friendly Fire -421 Cogmind --------- Core Integrity 0/850 Matter 285/300 Energy 45/100 System Corruption 0% Temperature Warning (383) Movement Core (1450) Ox28 Location -6/Factory Parts ------- > --- POWER (2) -------- (None) > --- PROPULSION (4) --- (None) > --- UTILITY (7) ------ Huge Storage Unit Improved Signal Interpreter A0-MCA's Component Scanner > --- WEAPON (2) ------- Mini Grenade Launcher Companion Sword > --- INVENTORY (25) --- Angular Momentum Engine Cooled VTOL Module Nuclear Pulse Thruster Nuclear Pulse Thruster Large Storage Unit Authchip [Weapon] Advanced Beam Cannon Heavy Particle Cannon Phase Cannon Faulty Cooled Plasma Cannon Plasma Cutter Scythe DRS Beacon (Ready) Peak State ------------ > --- POWER ------------ Improved Ion Engine Angular Momentum Engine > --- PROPULSION ------- Light Treads Light Treads Improved Treads Compact Wheel > --- UTILITY ---------- Cryofiber Web Heat Sink Huge Storage Unit Energy Well Weapon Cycler Force Field A0-MCA's Component Scanner > --- WEAPON ----------- Force Rifle Companion Sword > --- INVENTORY -------- Light Treads Light Treads Light Treads Compact Wheel Cooled VTOL Module Nuclear Pulse Thruster Nuclear Pulse Thruster Large Storage Unit Improved Particle Charger Authchip [Weapon] Force Rifle Force Rifle Advanced Beam Cannon Advanced Beam Cannon Phase Cannon Mini Grenade Launcher Plasma Cutter DRS Beacon [Rating: 58] Favorites ----------- Power Improved Ion Engine Engine Improved Ion Engine Power Core Light Fission Core Propulsion Light Treads Treads Light Treads Leg Aluminum Leg Wheel Compact Wheel Flight Unit Cooled VTOL Module Utility Huge Storage Unit Device Heat Sink Storage Huge Storage Unit Processor A0-MCA's Component Scanner Weapon Advanced Beam Cannon Energy Gun Force Rifle Energy Cannon Advanced Beam Cannon Ballistic Gun Heavy Assault Rifle Ballistic Cannon Improved Light Cannon Slashing Weapon Companion Sword Build | -11 -10 -10 -9 -9 -9 -9 -6 ------- Run | Yrd Mat Min Mat Sto Rec Scr Fac Slots Evolved 8 | . . . 2 . . . 6 Power 1 | . . . . . . . 1 Propulsion 2 | . . . 2 . . . . Utility 5 | . . . . . . . 5 Weapon . | . . . . . . . . Parts Attached 64 | . 10 . 6 19 1 2 26 Power 6 | . 1 . 1 1 . 1 2 Engine 5 | . 1 . 1 1 . 1 1 Core 1 | . . . . . . . 1 Reactor . | . . . . . . . . Propulsion 22 | . 2 . 4 9 . 1 6 Treads 14 | . 2 . 3 4 . 1 4 Leg . | . . . . . . . . Wheel 6 | . . . 1 3 . . 2 Hover . | . . . . . . . . Flight 2 | . . . . 2 . . . Utility 18 | . 4 . . 3 1 . 10 Device 10 | . 1 . . 2 1 . 6 Storage 6 | . 3 . . 1 . . 2 Processor 2 | . . . . . . . 2 Hackware . | . . . . . . . . Protection . | . . . . . . . . Artifact . | . . . . . . . . Weapon 18 | . 3 . 1 6 . . 8 Energy Gun 5 | . . . . 1 . . 4 Energy Cannon 3 | . . . . 2 . . 1 Ballistic Gun 3 | . . . 1 2 . . . Ballistic Cannon 4 | . 3 . . 1 . . . Launcher 1 | . . . . . . . 1 Special Weapon . | . . . . . . . . Impact Weapon . | . . . . . . . . Slashing Weapon 2 | . . . . . . . 2 Piercing Weapon . | . . . . . . . . Special Melee Weapon . | . . . . . . . . Unidentified Prototypes 6 | . . . . 5 . . 1 Parts Lost 26 | . . . 2 1 . . 23 Power 3 | . . . . . . . 3 Propulsion 12 | . . . 1 1 . . 10 Utility 9 | . . . 1 . . . 8 Weapon 2 | . . . . . . . 2 Highest Loss Streak 11 | . . . 2 1 . . 11 To Critical Strikes . | . . . . . . . . Average Slot Usage (%) 86 | . 90 100 97 94 97 77 72 Engine 9 | . 14 14 11 11 11 11 2 Treads 28 | . 25 28 33 32 33 33 18 Wheel 6 | . . . 9 6 11 11 1 Device 9 | . 5 14 9 10 11 11 8 Storage 12 | . 14 14 11 11 11 11 14 Processor 2 | . . . . . . . 9 Energy Gun 2 | . . . . . . . 9 Energy Cannon 5 | . . . . 12 20 . . Ballistic Gun 1 | . . . 2 6 . . . Ballistic Cannon 5 | . 26 28 19 3 . . . Peak Build Rating 58 | . 11 11 15 21 17 20 58 Average Rating 21 | . 9 11 13 16 16 15 45 On Entrance 12 | 6 6 11 11 13 17 12 20 Naked Turns . | . . . . . . . . Heaviest Build 124 | 11 96 36 36 96 96 94 124 Greatest Support 66 | 20 40 40 66 66 16 16 60 Greatest Overweight (x) 7 | . 2 . 3 5 5 5 7 Average Overweight (x) 3 | . . . 2 3 5 5 2 Largest Inventory Capacity 25 | . 25 15 15 25 25 25 25 Average Capacity 21 | . 10 15 15 21 25 25 25 Most Carried 25 | . 9 8 11 15 16 25 24 Average Carried 14 | . 7 8 8 11 14 21 16 Final Capacity 25 | 8 15 15 15 25 25 25 25 Final Carried 25 | 6 8 8 9 15 16 25 13 Class Distribution -------------------- 68% | Scavenger-Mutant 31% | Mutant Dominant Class ---------------- Mutant | -10/Materials Mutant | -10/Mines Mutant | -9/Materials Scavenger-Mutant | -9/Storage Scavenger-Mutant | -9/Recycling Scavenger-Mutant | -9/Scraptown Scavenger-Mutant | -6/Factory Resources | -11 -10 -10 -9 -9 -9 -9 -6 ----------- Run | Yrd Mat Min Mat Sto Rec Scr Fac Matter Collected 1643 | 200 332 30 271 595 23 10 182 Remotely . | . . . . . . . . Salvage Created 2674 | . 336 35 245 1185 151 . 722 Parts 164 | . 22 8 21 77 5 . 31 Haulers Intercepted 6 | . . . . 6 . . . Recyclers Shooed 1 | . . . . 1 . . . Parts Field Recycled . | . . . . . . . . Retrieved Matter . | . . . . . . . . Parts Self-Destructed . | . . . . . . . . Prevented . | . . . . . . . . Kills | -11 -10 -10 -9 -9 -9 -9 -6 ------- Run | Yrd Mat Min Mat Sto Rec Scr Fac Combat Hostiles Destroyed 53 | . 14 3 9 19 . . 8 Melee 1 | . . . . . . . 1 Guns 13 | . . . 1 5 . . 7 Cannons 38 | . 13 3 8 14 . . . Classes Destroyed 10 | . 5 . 1 3 . . 1 Worker 4 | . . . . 2 . . 2 Builder 1 | . 1 . . . . . . Hauler 6 | . . . . 6 . . . Recycler 7 | . 2 . . 2 2 . 1 Drone 3 | . . . . 3 . . . Watcher 8 | . 3 . 1 1 . . 3 Swarmer 21 | . 8 3 3 4 . . 3 Grunt 18 | . 6 . 3 9 . . . Sentry 11 | . . . 3 6 . . 2 Hunter 3 | . . . . . . . 3 Best Kill Streak 8 | . 5 3 4 8 2 . 3 Combat Bots Only 8 | . 5 3 3 8 . . 3 Max Kills in Single Turn 2 | . 2 1 1 2 1 . 1 Gunslinging . | . . . . . . . . Exploded . | . . . . . . . . Melee 1 | . . . . . . . 1 Uniques/NPCs Destroyed . | . . . . . . . . Combat | -11 -10 -10 -9 -9 -9 -9 -6 -------- Run | Yrd Mat Min Mat Sto Rec Scr Fac Hostile Shots Fired 528 | . 83 7 41 91 . . 306 Missed 168 | . 25 3 5 36 . . 99 Damage Taken 4695 | . 481 29 394 772 61 . 2958 Core 1073 | . 115 . 36 58 12 . 852 Absorbed by Shields 171 | . . . . . . . 171 Core Remaining (%) 75 | 100 . 54 . . . 73 . Volleys Fired 194 | . 60 4 22 56 6 . 46 Largest 2 | . 2 2 2 2 2 . 2 Hottest 160 | . 78 78 78 136 136 . 160 Shots Fired 370 | . 108 8 44 111 13 . 86 Gun 141 | . 6 . 6 43 . . 86 Cannon 229 | . 102 8 38 68 13 . . Launcher . | . . . . . . . . Special . | . . . . . . . . Kinetic 229 | . 105 8 44 72 . . . Thermal 138 | . . . . 39 13 . 86 Explosive . | . . . . . . . . Electromagnetic 3 | . 3 . . . . . . Robot Hit Streak 17 | . 7 1 8 17 6 . 9 Robot Miss Streak 8 | . 7 2 2 4 . . 8 Penetration Max . | . . . . . . . . Secondary Targets 1 | . . . . . . . 1 Max Gunslinging Chain 1 | . . . . . . . 1 Shots Hit Robots 225 | . 52 3 29 72 6 . 63 Core Hits 93 | . 18 3 11 38 3 . 20 Critical Kills 3 | . . . . . . . 3 Critical Parts Destroyed 1 | . . . . . . . 1 Critical Strikes 8 | . 3 . . 1 . . 4 Destroy 4 | . . . . . . . 4 Blast 4 | . 3 . . 1 . . . Melee Attacks 22 | . . . . . . . 22 Impact . | . . . . . . . . Slashing 22 | . . . . . . . 22 Piercing . | . . . . . . . . Sneak Attacks . | . . . . . . . . Combat Hostiles . | . . . . . . . . Follow-up Attacks . | . . . . . . . . Damage Inflicted 5500 | . 1186 84 590 1519 113 . 2008 Guns 1823 | . 32 . 41 482 . . 1268 Cannons 2894 | . 1154 67 545 1024 104 . . Explosions 72 | . . . . . . . 72 Melee 668 | . . . . . . . 668 Ramming 43 | . . 17 4 13 9 . . Kinetic 2739 | . 1170 67 586 916 . . . Thermal 2034 | . . . . 590 104 . 1340 Explosive . | . . . . . . . . Electromagnetic 16 | . 16 . . . . . . Impact . | . . . . . . . . Slashing 668 | . . . . . . . 668 Piercing . | . . . . . . . . Highest Corruption 3 | . . . 1 3 3 . . Average Corruption 1 | . . . 1 1 3 . . Corruption Purged . | . . . . . . . . Corruption Blocked . | . . . . . . . . Effects 33 | . . . 1 18 14 . . Message Errors 7 | . . . . 2 5 . . Matter Fused 9 | . . . . 7 2 . . Heat Flow Errors 4 | . . . . 3 1 . . Energy Discharges 2 | . . . . 2 . . . Parts Rejected 1 | . . . . 1 . . . Data Loss (minor) 5 | . . . . 1 4 . . Data Loss (major) 1 | . . . 1 . . . . Misfires 2 | . . . . 1 1 . . Alerts 1 | . . . . . 1 . . Weapon Failures 1 | . . . . 1 . . . Overload Shots . | . . . . . . . . Overflow Damage 110 | . 25 . 5 . . . 80 Projectiles 30 | . 25 . 5 . . . . Explosions 32 | . . . . . . . 32 Melee 48 | . . . . . . . 48 Knockbacks 23 | . 18 . 3 2 . . . Impact . | . . . . . . . . Kinetic 20 | . 15 . 3 2 . . . Secondary 3 | . 3 . . . . . . Self-Inflicted Damage 12 | . . . 2 6 4 . . Shots . | . . . . . . . . Rammed 5 | . . 1 1 1 2 . . Targets Rammed 5 | . . 1 1 1 2 . . Kicked . | . . . . . . . . Crushed . | . . . . . . . . Highest Temperature 488 | . 216 . 3 196 238 . 488 Average Temperature 101 | . 58 . 3 59 59 . 168 Received Heat Transfer 1068 | . 84 . 108 321 30 . 525 Effects 5 | . . . . . . . 5 Shutdowns 2 | . . . . . . . 2 Matter Decay 1 | . . . . . . . 1 Damage (minor) 2 | . . . . . . . 2 Siege Activations . | . . . . . . . . Robots Corrupted 1 | . 1 . . . . . . Combat Hostiles 1 | . 1 . . . . . . Parts Fried . | . . . . . . . . Impact Corruptions 2 | . 2 . . . . . . Robots Melted . | . . . . . . . . Combat Hostiles . | . . . . . . . . Parts Melted 13 | . . . . 2 . . 11 Heat Transferred 3084 | . . . . 1036 185 . 1863 Parts Sabotaged . | . . . . . . . . Parts Stolen . | . . . . . . . . Parts Stripped . | . . . . . . . . Power Chain Reactions . | . . . . . . . . Alert | -11 -10 -10 -9 -9 -9 -9 -6 ------- Run | Yrd Mat Min Mat Sto Rec Scr Fac Peak Influence 334 | . 291 171 262 334 34 . 79 Initial 66 | . . 55 66 62 34 . . Average 100 | . 177 168 150 159 19 . 21 Maximum Alert Level 1 | . 1 . 1 1 . . . Low Security (%) 87 | . 61 100 63 86 100 . 100 Level 1 12 | . 38 . 36 13 . . . Level 2 . | . . . . . . . . Level 3 . | . . . . . . . . Level 4 . | . . . . . . . . Level 5 . | . . . . . . . . High Security . | . . . . . . . . Max Security . | . . . . . . . . Squads Dispatched 10 | . 4 . 1 3 . . 2 Investigation 4 | . 3 . . 1 . . . Extermination 1 | . . . . . . . 1 Reinforcement 5 | . 1 . 1 2 . . 1 Assault . | . . . . . . . . Garrison . | . . . . . . . . Intercept . | . . . . . . . . Searches Triggered . | . . . . . . . . Construction Impeded . | . . . . . . . . Haulers Reinforced . | . . . . . . . . Active Scanning Responses . | . . . . . . . . Cargo Convoy Interrupts . | . . . . . . . . Stealth | -11 -10 -10 -9 -9 -9 -9 -6 --------- Run | Yrd Mat Min Mat Sto Rec Scr Fac Distress Signals 6 | . 3 . 2 1 . . . Communications Jammed . | . . . . . . . . Distress Signals . | . . . . . . . . Times Spotted 94 | . 24 2 11 36 . . 21 Peak Tracking Total 8 | . 5 2 4 8 . . 4 Tactical Retreats 3 | . 1 . . 2 . . . Traps | -11 -10 -10 -9 -9 -9 -9 -6 ------- Run | Yrd Mat Min Mat Sto Rec Scr Fac Traps Triggered 6 | . 3 . 1 2 . . . Indirectly . | . . . . . . . . Trap Hack Attempts . | . . . . . . . . Triggered . | . . . . . . . . Disarmed . | . . . . . . . . Reprogrammed . | . . . . . . . . Reused . | . . . . . . . . Traps Extracted . | . . . . . . . . Installed . | . . . . . . . . Triggered . | . . . . . . . . Machines | -11 -10 -10 -9 -9 -9 -9 -6 ---------- Run | Yrd Mat Min Mat Sto Rec Scr Fac Machines Disabled 11 | . 1 2 1 1 1 . 5 Max in Single Turn 3 | . 1 1 1 1 1 . 3 Machines Repaired . | . . . . . . . . Machines Dismantled . | . . . . . . . . Machines Sabotaged . | . . . . . . . . Overloaded Fab Kills . | . . . . . . . . Hacking | -11 -10 -10 -9 -9 -9 -9 -6 --------- Run | Yrd Mat Min Mat Sto Rec Scr Fac Machines Accessed 10 | . 1 . 2 4 . 3 . Terminals 7 | . 1 . 2 4 . . . Fabricators . | . . . . . . . . Repair Stations . | . . . . . . . . Recycling Units . | . . . . . . . . Scanalyzers . | . . . . . . . . Garrison Access . | . . . . . . . . Total Hacks 24 | . 4 . 3 8 . 9 . Successful 15 | . 1 . 1 4 . 9 . Failed 7 | . 2 . 1 4 . . . Catastrophic 2 | . 1 . . 1 . . . Database Lockouts 2 | . 1 . 1 . . . . Manual 9 | . 4 . 3 2 . . . Terminals 15 | . 4 . 3 8 . . . Fabricators . | . . . . . . . . Repair Stations . | . . . . . . . . Recycling Units . | . . . . . . . . Scanalyzers . | . . . . . . . . Garrison Access . | . . . . . . . . Terminal Hacks 15 | . 1 . 1 4 . 9 . Record 1 | . . . . . . 1 . Robot Analysis 9 | . 1 . 1 1 . 6 . Open Door 4 | . . . . 3 . 1 . Derelict Proto ID Bank 1 | . . . . . . 1 . Fabricator Hacks . | . . . . . . . . Repair Station Hacks . | . . . . . . . . Recycling Unit Hacks . | . . . . . . . . Scanalyzer . | . . . . . . . . Garrison Access Hacks . | . . . . . . . . Unauthorized Hacks . | . . . . . . . . Terminals . | . . . . . . . . Fabricators . | . . . . . . . . Repair Stations . | . . . . . . . . Recycling Units . | . . . . . . . . Scanalyzers . | . . . . . . . . Garrison Access . | . . . . . . . . Data Cores Recovered . | . . . . . . . . Used . | . . . . . . . . Hacking Detections 6 | . 1 . 2 3 . . . Full Trace Events . | . . . . . . . . Feedback Events . | . . . . . . . . Feedback Blocked . | . . . . . . . . Robot Schematics Acquired . | . . . . . . . . Robots Built . | . . . . . . . . Authchips . | . . . . . . . . Time . | . . . . . . . . Total Robot Build Rating . | . . . . . . . . Part Schematics Acquired . | . . . . . . . . Parts Built . | . . . . . . . . Authchips . | . . . . . . . . Time . | . . . . . . . . Total Part Build Rating . | . . . . . . . . Parts Repaired . | . . . . . . . . Time . | . . . . . . . . Parts Recycled . | . . . . . . . . Recycled Matter . | . . . . . . . . Retrieved Matter . | . . . . . . . . Retrieved Components . | . . . . . . . . Parts Scanalyzed . | . . . . . . . . Part Schematics Acquired . | . . . . . . . . Parts Damaged . | . . . . . . . . Bothacking | -11 -10 -10 -9 -9 -9 -9 -6 ------------ Run | Yrd Mat Min Mat Sto Rec Scr Fac Used RIF Installer . | . . . . . . . . Robots Hacked . | . . . . . . . . Non-combat . | . . . . . . . . Combat . | . . . . . . . . Robot Hacks Applied . | . . . . . . . . Relay Couplers Released . | . . . . . . . . Fabnet Peak Effective % . | . . . . . . . . Robots Rewired . | . . . . . . . . Allies Hacked . | . . . . . . . . Hacks Repelled . | . . . . . . . . Allies | -11 -10 -10 -9 -9 -9 -9 -6 -------- Run | Yrd Mat Min Mat Sto Rec Scr Fac Total Allies . | . . . . . . . . Largest Group . | . . . . . . . . Highest-Rated Group . | . . . . . . . . Highest-Rated Ally . | . . . . . . . . Total Orders 5 | . . . . 4 . . 1 EXPLORE 5 | . . . . 4 . . 1 Ally Attacks . | . . . . . . . . Total Damage . | . . . . . . . . Kills . | . . . . . . . . Allies Corrupted . | . . . . . . . . Allies Melted 1 | . . . . . 1 . . Intel | -11 -10 -10 -9 -9 -9 -9 -6 ------- Run | Yrd Mat Min Mat Sto Rec Scr Fac Robot Analysis Total 9 | . 1 . 1 1 . 6 . Derelict Logs Recovered 3 | . . 3 . . . . . Drone Launches 23 | . . . . 21 . . 2 Drone Recoveries 7 | . . . . 7 . . . Exploration | -11 -10 -10 -9 -9 -9 -9 -6 ------------- Run | Yrd Mat Min Mat Sto Rec Scr Fac Turns Passed 7483 | . 846 180 473 1723 1020 1695 1546 Spaces Moved 3469 | 1 360 105 282 693 554 954 520 Core . | . . . . . . . . Treads 920 | . 314 105 22 130 . . 349 Legs 47 | 1 46 . . . . . . Wheels 2502 | . . . 260 563 554 954 171 Hover . | . . . . . . . . Flight . | . . . . . . . . Fastest Speed 115 | 120 120 160 125 115 175 175 145 Average Speed 177 | 120 167 160 128 174 175 175 228 Slowest Speed 320 | 120 320 160 240 240 175 175 320 Overloaded Moves . | . . . . . . . . Propulsion Burnouts . | . . . . . . . . Robots Hopped . | . . . . . . . . Cave-ins Triggered . | . . . . . . . . Exploration Rate (%) 52 | 1 71 24 32 95 95 78 23 Regions Visited 7 Branch Regions 4 Pre-discovered Areas 1 | . . 1 . . . . . Known Exits Taken . | . . . . . . . . Unknown Exits Taken 7 | 1 1 1 1 1 1 1 . Scrap Searched 5 | . . . . . . 5 . Spaces Dug 3 | . 1 . . . . . 2 Terrain Destroyed 21 | . 8 1 3 2 . . 7 Melee . | . . . . . . . . Projectile 19 | . 8 1 3 2 . . 5 AOE 2 | . . . . . . . 2 Terrain Rammed . | . . . . . . . . Walls Destroyed . | . . . . . . . . Machines Disabled . | . . . . . . . . Actions | -11 -10 -10 -9 -9 -9 -9 -6 --------- Run | Yrd Mat Min Mat Sto Rec Scr Fac Total 4398 | . 499 109 350 1097 593 982 768 Wait 544 | . 53 . 33 288 28 8 134 Move 3462 | . 359 104 281 692 553 953 520 Hop . | . . . . . . . . Pick Up 47 | . 6 . 3 15 . 13 10 Fast Attach 18 | . 3 . 1 9 . . 5 Attach 31 | . 3 . 2 4 1 . 21 Detach 10 | . 2 . . 2 2 . 4 Swap 15 | . 4 . 3 6 . 2 . Drop 43 | . 9 . 4 17 1 6 6 Fire 194 | . 60 4 22 56 6 . 46 Melee 22 | . . . . . . . 22 Ram 4 | . . . 1 1 2 . . Kick . | . . . . . . . . Crush 1 | . . 1 . . . . . Escape Stasis . | . . . . . . . . Rewire . | . . . . . . . . Trap . | . . . . . . . . Miscellaneous 7 | . . . . 7 . . . Route ------- -11/Scrapyard -10/Materials (discovered 3 exits: *Mat x2 / [*Min]) -10/Mines -9/Materials (discovered 2 exits: *Mat / *Sto) -9/Storage (discovered 2 exits: *Mat / [*Rec]) -9/Recycling (discovered 2 exits: [*Fac] / *Scr) -9/Scraptown (discovered 2 exits: [*Fac x2]) -6/Factory (discovered 1 exit: [*Ext]) History --------- Turn | Location | Event 1 | -11/Scrapyard | Discovered new exit (range 0) 1 | -11/Scrapyard | Entered Materials 181 | -10/Materials | Central database locked down 198 | -10/Materials | Discovered new exit (range 14) 224 | -10/Materials | Discovered new exit (range 12) 304 | -10/Materials | Build established: Mutant 469 | -10/Materials | Discovered new exit (range 9) 847 | -10/Materials | Entered Mines 883 | -10/Mines | Learned Materials security intel 912 | -10/Mines | Discovered new exit (range 13) 938 | -10/Mines | Learned 2 Materials zone layouts 983 | -10/Mines | Learned location of Storage (-9) 1027 | -10/Mines | Entered Materials 1027 | -9/Materials | Evolved 2 slots: Propulsion x2 1028 | -9/Materials | Identified exit to Materials 1121 | -9/Materials | Central database locked down 1492 | -9/Materials | Discovered new exit (range 5) 1500 | -9/Materials | Entered Storage 1714 | -9/Storage | Lost 8 allies 1725 | -9/Storage | Destroyed 8 combat bots 2056 | -9/Storage | Met 01-MTF 2565 | -9/Storage | Build established: Scavenger-Mutant 2842 | -9/Storage | Discovered exit to Materials (range 15) 3216 | -9/Storage | Discovered new exit (range 5) 3223 | -9/Storage | Entered Recycling 3223 | -9/Recycling | Accompanied by 1 ally (01-MTF) 3224 | -9/Recycling | Joined Warlord attack on 0b10 via Recycling 3847 | -9/Recycling | Discovered new exit (range 8) 4148 | -9/Recycling | Scanned before Scraplab entrance 4224 | -9/Recycling | Entered Scraplab 4240 | -9/Recycling | Discovered new exit (range 2) 4243 | -9/Recycling | Entered Scraptown 4243 | -9/Scraptown | System corruption cleaned by C-Scrubber 4688 | -9/Scraptown | Discovered new exit (range 13) 4796 | -9/Scraptown | Visited Awakened 4840 | -9/Scraptown | Visited Junk Repository 4894 | -9/Scraptown | Visited Spacefarers 4917 | -9/Scraptown | Visited Scrapoid Research Area 4938 | -9/Scraptown | Visited IN-MT5's Study 4975 | -9/Scraptown | Visited Bundlers 5097 | -9/Scraptown | Visited TADAMA 5188 | -9/Scraptown | Visited UFD Registry 5188 | -9/Scraptown | Registered with UFD as "Arcboard" 5300 | -9/Scraptown | Visited A0-MCA Data Center 5310 | -9/Scraptown | Given a C+ rating by A0-MCA 5315 | -9/Scraptown | Found A0-MCA's Component Scanner 5353 | -9/Scraptown | Visited Junk Repository 5461 | -9/Scraptown | Visited Sword Containment 5527 | -9/Scraptown | Visited Research Penetration Think Tank 5580 | -9/Scraptown | Visited Analyses Database 5615 | -9/Scraptown | Visited Abandonware Association 5650 | -9/Scraptown | Visited Derelict Rescue Squad 5661 | -9/Scraptown | Found DRS Beacon 5693 | -9/Scraptown | Visited Science Guys 5819 | -9/Scraptown | Visited LU-1G1's Boring Crew 5933 | -9/Scraptown | Discovered new exit (range 3) 5938 | -9/Scraptown | Entered Factory 5938 | -6/Factory | Evolved 6 slots: Power x1, Utility x5 6037 | -6/Factory | Spotted B-75 Beast 6192 | -6/Factory | Discovered new exit (range 13) 6329 | -6/Factory | Core integrity fell below 50% 6353 | -6/Factory | Lost 11 parts (2p5n4u) 7433 | -6/Factory | Lost 4 parts (2n2u) 7469 | -6/Factory | Core integrity fell below 20% 7484 | -6/Factory | Destroyed by G-50 Soldier with Heavy Laser Last Messages --------------- 07411_ K-01 Serf collects debris. 07450_ K-01 Serf suffers critical hit (Destroy). 07450_ K-01 Serf destroyed. 07464_ G-67 Veteran suffers critical hit (Destroy). 07464_ Destroyed Flexi-carbon Leg. 07467_ Critical hit (Burn: +37). 07469_ Lgt. Fission Core destroyed. 07469_ Critical hit (Burn: +37). 07470_ Force Rifle destroyed. 07472_ Lgt. Treads destroyed. 07472_ Com. Wheel destroyed. Companion Sword: "It should just be you and me. Why do we need to let that Force Rifle get in the way?" 07476_ Energy Well destroyed. 07476_ Critical hit (Burn: +37). 07479_ G-67 Veteran heat short circuits Field Laser. 07480_ Power Conduit explodes. 07480_ U-05 Engineer builds a Door. 07483_ Dropped Force Rifle. Map ----- +----------------------------------------------------+ | ?????????????????????????????????????????????????? | | ?????????????????????????????????????????????????? | | ?????????????????????????????????????????????????? | | ?????????????????????????????????????????????????? | | ????????????????????????????? ????????????????? | | ??????????????????????????? ????????????????? | | ?????????????????????????# "???????????????? | | ?????????????????????????# "???????????????? | | ?????????????????????????# "?"??????#??????? | | ?????????????????????????+ " " ? ? #??????? | | ?????????????????????????# " " " #??????? | | ???????????????????????### " " " !!#??????? | | #######????????????????# " " " !!###????? | | ]#????????????????# " " #????? | | #????????????????# #????? | | " " " #????????????????+ #????? | | " " " #????????????????# * ###??? | | " " " #????????????????# ?? | | " " " #????????????????# #????? | | " " " #?????????????????# g #????? | | " " " #?????????????????# g g #????? | | " " " #?????????????????# % #????? | | " " " #?????????????????# g ####### ##????????? | | " " " #????############## #?????????????????? | | #????# # #?????????????????? | | ############ #@ t #?????????????????? | | ^ # # #?????????????????? | | """ """ # # #?????????????????? | | """ """ # """ # #?????????????????? | | """ """ # " """ # #?????????????????? | | # " """ = =+% ####??????????????? | | """ """ # #u #![[ ????????????? | | """ """ *#%[ """ # #![[ #?????##????? | | """ """ #% """" ###+####![[ #?H??? ????? | | #* """" ## # #?????# ##### | | # [%* ## # #?????# | | +######################### """ # #?????# | | + """S""" #????????????# """ # #?????# | | # """ """ #?????#####??# """ # """ #?????# """ | | # #?#### # ##?# # "R #?????# """ | | + """ """ #?#""""""" #?# """ # """ #?????# """ | | # """ """ #?#" " ### """ # "" #?#???# | | # """ """ #? " " ## """ # #?# # | | # ###" " ## ###+###?# | | # # "######+## #?# ### | | ######""""" ######### | | ######"" | | #! = ############# | | # #"+####+## #???######### | | # "" #######???# | +----------------------------------------------------+ Best States ------------- Heat Dissipation 57 Energy Generation 25 Energy Capacity 815 Matter Stores 300 Matter Capacity 300 Sight Range 16 Terrain Scan Density 10 Base Temperature (-) 100 Weapon Cycling 15 Evasion (%) 55 Recoil Reduction 3 Particle Charging 20 Authchip Count 1 Item Schematics ----------------- None Robot Schematics ------------------ None Fabricated ------------ Nothing Alien Tech Used ----------------- None Achievements -------------- None Challenges ------------ None Game ------ Seed SwarmRingCompactor Manual? 0 Play Time 00:37:33 Cumulative 105.5 hours Start 2024.08.22 @ 17:02:37 End 2024.08.22 @ 17:46:13 Sessions 1 Manual Loads 0 Difficulty Rogue Special Mode None Game No. 180 Rogue 179 Adventurer 1 Explorer 0 Win Type - Total 0 Types 0/0/0/0/0/0/0/0/0 Lore% 60 Gallery% 64 Achievement% 48 Wizard Run 0 Options --------- Layout 1 ASCII 0 Keyboard 0 Movement Mouse Keybinds 0 Fullscreen 2 Font 20/SmallcapsGlow Map View 54x42 Zoom Use 0% Tactical HUD 1 Map Filters NONE Filters NONE Steam 0 RUN: d5e00050-65dd-4b89-916b-f0f4b83564d5